{"text_format":"1","workbook":"xlsx","n_sheets":2,"sheets":["البيانات","ورقة2"],"not_rendered":{"charts":0,"images":1,"macros":0,"external_links":0,"defined_names":0,"comments":0,"pivot_tables":0},"unopened":[],"bounds":{"document_bytes":16777216,"sheet_cells":100000,"rows_first":2000,"rows_last":500,"rows_between":2000,"halvings":0,"cell_chars":16384,"cell_head_chars":4096},"cells_cut":0,"cells_raw":0,"read":"whole","date_system":"1900"}

{"sheet":"البيانات","index":0,"n_rows":68,"n_cols":49,"rows_kept":68,"cut":false,"hidden":false,"merged":[[3,17,4,18],[5,17,5,18],[11,38,12,38],[11,44,12,44],[4,37,4,42],[4,43,4,48],[5,37,6,37],[7,38,8,38],[7,44,8,44],[9,38,10,38],[9,44,10,44],[5,38,6,38],[5,39,5,40],[0,0,3,0],[0,2,3,2],[0,3,0,8],[0,9,0,14],[1,3,1,4],[1,5,1,6],[1,7,1,8],[1,9,1,10],[1,11,1,12],[1,13,1,14],[0,1,3,1],[3,37,3,48],[5,48,6,48],[5,45,5,46],[5,47,6,47],[5,41,6,41],[5,42,6,42],[5,43,6,43],[5,44,6,44]]}
["م","الاسم","الاستثناءات","الصف الرابع",null,null,null,null,null,"الصف الخامس"]
[null,null,null,{"$f":"Y6","v":"00:00:00"},null,{"$f":"AA6","v":"00:00:00"},null,{"$f":"AC6","v":"00:00:00"},null,{"$f":"AE6","v":"00:00:00"},null,{"$f":"AG6","v":"00:00:00"},null,{"$f":"AI6","v":"00:00:00"}]
[null,null,null,"الفترة الاولى","الفترة الثانية","الفترة الاولى","الفترة الثانية","الفترة الاولى","الفترة الثانية","الفترة الاولى","الفترة الثانية","الفترة الاولى","الفترة الثانية","الفترة الاولى","الفترة الثانية"]
[null,null,null,{"$f":"AQ8","v":"لغة عربية "},{"$f":"AQ9","v":"لغة انجليزية"},{"$f":"AQ10","v":"دراسات الاجتماعية"},{"$f":"AQ11","v":"علوم"},{"$f":"AQ12","v":"الرياضيات"},{"$f":"AQ13","v":"دين"},{"$f":"AW8","v":"لغة عربية "},{"$f":"AW9","v":"دين"},{"$f":"AW10","v":"علوم"},{"$f":"AW11","v":"لغة انجليزية"},{"$f":"AW12","v":"دراسات الاجتماعية"},{"$f":"AW13","v":"الرياضيات"},"السلام عليكم ورحمة الله وبركاته ارجو المساعدة في هذا الشيت",null,"توزيع اللجان ",null,null,null,null,null,null,null,null,null,null,null,null,null,null,null,null,null,null,null,"جدول الامتحانات للصفين الرابع والخامس الابتدائى للعام 2018 / 2019"]
[1,"محمد خالد","دراسات الاجتماعية",4,null,null,null,null,8,null,null,3,null,null,null,"اريد توزيع ارقام اللجان على أيام الامتحان بمعلومية الخلية  S9",null,null,null,null,null,null,null,null,null,null,null,null,null,null,null,null,null,null,null,null,null,"جدول امتحانات الصف الرابع الابتدائى",null,null,null,null,null,"جدول امتحانات الصف الخامس الابتدائى"]
[2,"محمود عبدالسلام","لغة عربية",null,3,null,4,null,null,null,null,null,null,3,null,"وهى مكتوب بها 8 اذن بتوزيع ارقام اللجان من 1 الى 8 كما هو موضح بشيت",null,"بيانات اللجان",null,null,null,null,null,null,null,null,null,null,null,null,null,null,null,null,null,null,null,"التاريخ","اليوم","وقت الإجابة",null,"زمن الإجابة","المادة","التاريخ","اليوم","وقت الإجابة",null,"زمن الإجابة","المادة"]
[3,"خالد عبد الوهاب",null,null,null,1,null,null,null,null,2,null,null,null,4,"وهى عدد اللجان ويقوم بتوزيع الأرقام عشوائية",null,"البيانات","عدد",null,null,null,null,null,null,null,null,null,null,null,null,null,null,null,null,null,null,null,null,"من","الى",null,null,null,null,"من","الى"]
[4,"عصام محمود",null,7,null,null,2,null,null,null,null,null,null,1,null,"المدرس له ثلاثة أيام مراقبة بمعلوم الخلية S10 وهى عدد أيام المراقبة",null,"عدد الملاحظين",{"$f":"MAX($A$5:$A$680)","v":64},null,null,null,null,null,null,null,null,null,null,null,null,null,null,null,null,null,null,"2017-07-27","الخميس","08:30:00","11:00:00","ساعتان ونصف","لغة عربية ","2017-07-27","الخميس","08:30:00","11:00:00","ساعتان ونصف","لغة عربية "]
[5,"رضا هاشم",null,5,null,4,null,null,null,null,null,null,null,null,2,"مكتوب بها 3 يصبح المدرس له ثلاثة أيام حسب ما يكتب فيها",null,"عدد اللجان",8,null,null,null,null,null,null,null,null,null,null,null,null,null,null,null,null,null,null,"2017-07-27",null,"11:30:00","01:00:00","ساعة ونصف","لغة انجليزية","2017-07-27",null,"11:30:00","01:00:00","ساعة ونصف","دين"]
[6,"عماد محمد",null,4,null,null,null,3,null,null,null,4,null,null,null,"المدرس الى راقب فى لجنة لا يدخلها مرة ثانية بمعنى المدرس احمد محمد راقب فى",null,"عدد أيام المراقبة",3,null,null,null,null,null,null,null,null,null,null,null,null,null,null,null,null,null,null,"2017-07-30","الاحد","08:30:00","10:00:00","ساعة ونصف","دراسات الاجتماعية","2017-07-30","الاحد","08:30:00","10:00:00","ساعة ونصف","علوم"]
[7,"فرحات منير",null,null,3,null,null,7,null,null,null,null,3,null,null," اللجنة 1 فى الصف الرابع لايكتب امامه مرة ثانية لجنة رقم 1 فى الصف الرابع",null,"عدد الملاحظين في كل لجنة",2,null,null,null,null,null,null,null,null,null,null,null,null,null,null,null,null,null,null,"2017-07-30",null,"10:30:00","12:00:00","ساعة ونصف","علوم","2017-07-30",null,"10:30:00","12:00:00","ساعة ونصف","لغة انجليزية"]
[8,"اشرف فتحى",null,2,null,null,null,null,null,null,null,3,null,null,5,"ان اتنين من المدرسين دخلوا لجنة مع بعضهما لاينفع ان يدخلو مع بعض لجنة مرة ثانية",null,"عدد مواد الامتحان ",12,null,null,null,null,null,null,null,null,null,null,null,null,null,null,null,null,null,null,"2017-08-01","الثلاثاء","08:30:00","10:00:00","ساعة ونصف","الرياضيات","2017-08-01","الثلاثاء","08:30:00","10:00:00","ساعة ونصف","دراسات الاجتماعية"]
[9,"اشرف ناجى",null,null,6,null,null,8,null,null,null,null,2,null,null," بمعنى اشرف فتحى وعبدالمرضى الشيخ دخلو لجنة رقم 1 ما ينفعش اشرف فتحى وعبدالمرضى الشيخ ",null,null,null,null,null,null,null,null,null,null,null,null,null,null,null,null,null,null,null,null,null,"2017-08-01",null,"10:30:00","12:00:00","ساعة ونصف","دين","2017-08-01",null,"10:30:00","12:00:00","ساعة ونصف","الرياضيات"]
[10,"ممدوح الوالى",null,null,null,3,null,null,5,4,null,null,null,null,null,"ان يدخلو مع بعض فى لجنة واحدة مرة ثانية "]
[11,"حاتم سعد",null,null,null,6,null,1,null,3,null,null,null,null,null,"ان أفترضنا عدد المدرسين اصبح 32 مدرس واصبح عدد أيام المراقبة 6 اذن المراقب يرقب لجنتان في اليوم الواحد"]
[12,"وليد جبر",null,6,null,null,7,null,null,null,null,null,null,3,null,"وينظر الى جدول الاستثنائات به مثلا محمد خالد دراسات اجتماعية في ثانى يوم ما ينفعش يكون له لجان لانه هقوم بتصحيح"]
[13,"مالك وجيه",null,null,null,1,null,null,7,1,null,null,null,null,null,"ومثلا اخر اسم بلال حسن مكتوب امامه الفترة الأولى "]
[14,"هاشم عبدالرحمن",null,8,null,null,null,null,null,null,null,null,1,4,null,"اذن يقوم بتوزيع ارقام لجانه على الفترة الثانية وهو اخر اسم في الشيت"]
[15,"صياد عبدالله",null,null,4,null,null,7,null,null,null,5,null,null,null,"وقد ضربت به مثال وهو موضح في الشيت"]
[16,"سعيد سويلم",null,5,null,null,null,null,null,null,null,null,3,null,4,"وان ضغطت على زر توزيع الأرقام يقوم بتحديث توزيع الأرقام مرة ثانية"]
[17,"حسن عبدربه",null,null,null,4,null,null,null,null,4,null,null,2,null,"وجزاكم الله خير"]
[18,"ربيع محمد",null,1,null,null,7,null,null,null,null,null,null,4,null,"الرقم يتم تكرارة مرتيين مثلا رقم 1 يتم تكرارة مرتين"]
[19,"ناجى عبدالحى",null,null,null,7,null,null,8,null,3,null,null,null,null,"وهكذا كل الأرقام من لجنة 1 الى لجنة 8 يتم تكرارة مرتتين"]
[20,"طه احمد",null,null,null,null,5,null,null,4,null,null,null,null,8]
[21,"مراد محمد",null,null,null,null,1,null,3,8]
[22,"اسلام عبدالباسط",null,null,4,null,null,null,null,7,null,null,null,null,6]
[23,"هشام خويلد",null,null,null,null,3,4,null,null,7]
[24,"شريف نور",null,null,null,null,null,null,6,null,1,null,2]
[25,"جوده عوده",null,null,5,null,8,6]
[26,"احمد محمد",null,1,null,null,null,6,null,null,null,8]
[27,"منتصر عبدالسلام",null,6,null,null,null,null,null,null,null,null,8,5]
[28,"احمد مظهر",null,null,null,6,null,null,1,5]
[29,"ممدوح رضوان",null,3,null,null,4,null,null,null,null,null,null,8]
[30,"اسماعيل يسن",null,8,null,null,null,null,3,null,null,7]
[31,"محمد الوكيل",null,null,null,null,6,null,null,3,null,null,null,8]
[32,"ناصر الزيات",null,2,null,null,8,null,null,null,null,null,null,1]
[33,"رشدى اباظة",null,null,null,3,null,2,null,null,6]
[34,"فريد شوقى",null,3,null,null,null,null,null,null,null,null,1,2]
[35,"شوقى الخولى",null,null,null,null,1,null,null,1,null,null,null,7]
[36,"منصور طه",null,7,null,null,null,null,2,null,null,1]
[37,"عبدالمرضى الشيخ",null,null,null,null,3,null,null,2,null,null,null,5]
[38,"نادر عبدالرحمن",null,null,null,7,null,null,null,null,2,null,null,6]
[39,"صلاح على",null,null,8,null,null,null,1,null,null,1]
[40,"احمد شاكر",null,null,null,2,null,1,null,8]
[41,"عبدالفتاح عبدالله",null,null,1,null,null,null,null,null,null,8,null,7]
[42,"محمد وليد",null,null,null,8,null,null,null,null,1,null,null,6]
[43,"طه بيومى",null,null,2,8,null,null,null,null,null,null,null,null,7]
[44,"كمال عامر",null,null,null,2,null,null,null,null,3,null,null,null,1]
[45,"رمضان خليل",null,null,8,null,null,null,7,null,null,5]
[46,"محسن جاد",null,null,5,null,null,3,null,null,null,6]
[47,"الهادى سعد",null,null,1,null,null,null,null,null,null,2,null,null,5]
[48,"عرفة حماد",null,null,7,null,null,null,null,null,null,7,null,null,8]
[49,"وائل ",null,null,null,null,2,null,4,6]
[50,"احمد جلال",null,null,null,null,5,4,null,null,5]
[51,"عامر احمد",null,null,null,null,null,5,null,null,6,null,4]
[52,"كريم محمد",null,null,null,null,null,null,6,null,4,null,5]
[53,"السيد رمضان",null,null,null,null,null,null,5,null,7,null,6]
[54,"بشير عبدالفتاح",null,null,null,5,null,null,null,null,8,null,null,null,1]
[55,"محمد مجدى",null,null,null,null,null,null,null,2,null,4,null,null,7]
[56,"صبحى",null,null,null,null,null,5,null,7,null,null,8]
[57,"حمدى",null,null,null,null,null,null,2,null,5,null,6]
[58,"احمد الصياد",null,null,null,null,6,null,null,5,null,null,7]
[59,"امام",null,null,null,null,null,8,null,null,null,null,5,null,3]
[60,"عدنان",null,null,7,null,null,null,null,null,null,2,null,null,6]
[61,"يوسف فهمى",null,null,null,5,null,null,4,null,8]
[62,"إسماعيل مصطفى",null,null,6,null,null,2,null,null,null,null,4]
[63,"يونس فرج",null,null,null,null,null,null,null,6,null,6,null,null,3]
[64,"بلال حسن","الفترة الأولى",null,2,null,null,null,null,null,null,null,7,null,2]

{"sheet":"ورقة2","index":1,"n_rows":40,"n_cols":17,"rows_kept":40,"cut":false,"hidden":false,"merged":[[34,1,35,8],[36,1,37,1],[36,2,37,2],[36,3,37,3],[36,4,37,4],[36,7,37,7],[36,8,37,8],[28,8,33,8],[30,1,31,1],[30,2,31,2],[30,3,31,3],[30,4,31,4],[32,1,33,1],[32,2,33,2],[32,3,33,3],[32,4,33,4],[28,1,29,1],[28,2,29,2],[28,3,29,3],[28,4,29,4],[28,7,33,7],[16,8,21,8],[22,7,27,7],[22,8,27,8],[22,1,23,1],[22,2,23,2],[22,3,23,3],[22,4,23,4],[24,1,25,1],[24,2,25,2],[24,3,25,3],[24,4,25,4],[26,1,27,1],[26,2,27,2],[26,3,27,3],[26,4,27,4],[20,1,21,1],[16,7,21,7],[16,1,17,1],[16,2,17,2],[16,3,17,3],[16,4,17,4],[18,1,19,1],[18,2,19,2],[18,3,19,3],[18,4,19,4],[14,4,15,4],[8,1,9,1],[20,2,21,2],[20,3,21,3],[20,4,21,4],[1,6,1,8],[2,6,2,8],[8,7,8,8],[10,8,15,8],[12,1,13,1],[12,2,13,2],[12,3,13,3],[12,4,13,4],[10,1,11,1],[10,2,11,2],[10,3,11,3],[10,4,11,4],[10,7,15,7],[14,1,15,1],[14,2,15,2],[14,3,15,3],[4,10,7,11],[4,7,4,8],[5,1,6,8],[3,6,3,8],[8,2,8,3],[8,4,9,4],[8,5,9,5],[8,6,9,6]]}
[null,null,null,null,null,null,{"$f":"\"اليوم\"&\" \"&TEXT(L2,\"DDD\")&\"      \"&\"الموافق\"&\" \"&TEXT(L2,\"YYY/MM/DD\")","v":"اليوم الأحد      الموافق 2017/07/30"},null,null,null,"الصف","الصف الرابع",null,null,null,null,{"$f":"YEAR(TODAY())&\" \"&\"/\"&\" \"&YEAR(TODAY())+1","v":"2019 / 2020"}]
[null,"الادارة التعليمية",null,null,null,null,{"$f":"L1&\"         \"&\"مادة\"&\" / \" &VLOOKUP(SMALL(IF(L2=البيانات!$AL$8:$AL$98,ROW(1:78)),ورقة2!M3),CHOOSE({1,2},ROW(1:78),البيانات!$AQ$8:$AQ$98),2,0)","v":"الصف الرابع         مادة / علوم"},null,null,null,"التاريخ","2017-07-30",null,null,null,null,"لامتحان نصف العام"]
[null,"مدرسة الابتدائية رقم 2",null,null,null,null,{"$f":"\"الزمن\"&\" / \" &VLOOKUP(SMALL(IF($L$2=البيانات!AL8:AL98,ROW(1:78)),ورقة2!M3),CHOOSE({1,2},ROW(1:78),البيانات!$AP$8:$AP$98),2,0)","v":"الزمن / ساعة ونصف"},null,null,null,"الفتــــــرة","الفترة الثانية",{"$f":"IF(L3=\"الفترة الاولى\",1,2)","v":2},null,"الصف الرابع",null,"لامتحان نصف العام"]
[null,null,null,null,null,null,{"$f":"\"وقت الاجابة من\"&\" / \" &VLOOKUP(SMALL(IF($L$2=البيانات!$AL$8:$AL$98,ROW(1:78)),ورقة2!M3),CHOOSE({1,2},ROW(1:78),TEXT(البيانات!AT8:AT98,\"hh:mm\")),2,0)&\"   \"&\"الى\"&VLOOKUP(SMALL(IF($L$2=البيانات!$AL$8:$AL$98,ROW(1:78)),ورقة2!M3),CHOOSE({1,2},ROW(1:78),TEXT(البيانات!AO8:AO98,\"hh:mm\")),2,0)","v":"وقت الاجابة من / 10:30   الى12:00"},null,null,null,null,null,null,null,"الصف الخامس",null,"لامتحان آخر العام"]
[null,null,null,null,null,null,null,null,null,null,"اضغط هنا"]
[null,{"$f":"\"كشف تـــــــــــوزيع مــــــــلاحظة\"&\" \"&L1&\" \"&  Q2&\" \"&Q1","v":"كشف تـــــــــــوزيع مــــــــلاحظة الصف الرابع لامتحان نصف العام 2019 / 2020"}]
[]
[]
[null,"اللجنة","ارقام الجلوس ",null,"عدد\n التلاميذ","اسم الملاحظ","التوقيع","مراقب الدور"]
[null,null,"من","الى",null,null,null,"الاسم","التوقيع"]
[null,1]
[]
[null,2]
[]
[null,3]
[]
[null,4]
[]
[null,5]
[]
[null,6]
[]
[null,7]
[]
[null,8]
[]
[null,9]
[]
[null,10]
[]
[null,11]
[]
[null,12]
[]
[null,"الاحتياطيون"]
[]
[null,13]
[null,"2 -"]
[]
[null,null,null,"الامن",null,"المراقب الأول",null,null,"رئيس اللجنة"]